[Event "29. Klatovy A 2023"]
[Site "Klatovy"]
[Date "2023.07.09"]
[Round "9.5"]
[White "Jun, Rudolf"]
[Black "Dvorak, Jan"]
[Result "1/2-1/2"]
[ECO "C01"]
[WhiteElo "2223"]
[BlackElo "2176"]
[PlyCount "36"]
[EventDate "2023.07.01"]
[EventType "swiss"]
[EventRounds "9"]
[EventCountry "CZE"]
[TimeControl "120+30"]

1. e4 {[%emt 0:00:02]} e6 {[%emt 0:01:34]} 2. d4 {[%emt 0:00:07]} d5 {[%emt 0:00:06]} 3. Nc3 {[%emt 0:00:35]} Bb4 {[%emt 0:00:06]} 4. exd5 {[%emt 0:00:08]} exd5 {[%emt 0:00:10]} 5. Bd3 {[%emt 0:00:24]} Nc6 {[%emt 0:03:30]} 6. Nf3 {[%emt 0:02:15]} Bg4 {[%emt 0:03:57]} 7. a3 {[%emt 0:08:14]} Be7 {[%emt 0:18:35]} 8. h3 {[%emt 0:03:43]} Bh5 {[%emt 0:01:50]} 9. g4 {[%emt 0:10:12]} Bg6 {[%emt 0:01:38]} 10. Bf4 {[%emt 0:19:53]} Nf6 {[%emt 0:10:42]} 11. Ne5 {[%emt 0:00:43]} O-O {[%emt 0:10:50]} 12. O-O {[%emt 0:03:40]} Ne4 {[%emt 0:19:14]} 13. Nxe4 {[%emt 0:11:32]} dxe4 {[%emt 0:04:59]} 14. Nxc6 {[%emt 0:02:07]} bxc6 {[%emt 0:00:11]} 15. Bc4 {[%emt 0:00:47]} Bd6 {[%emt 0:02:42]} 16. Bxd6 {[%emt 0:01:20]} cxd6 {[%emt 0:04:56]} 17. f4 {[%emt 0:03:55]} exf3 {[%emt 0:00:27]} 18. Rxf3 {[%emt 0:01:54]} d5 {[%emt 0:02:03]} 1/2-1/2

[Event "29. Klatovy A 2023"]
[Site "Klatovy"]
[Date "2023.07.09"]
[Round "9.6"]
[White "Kupsa, Matej 2001"]
[Black "Flajsman, Pavel"]
[Result "1/2-1/2"]
[ECO "A36"]
[WhiteElo "2145"]
[BlackElo "2192"]
[PlyCount "137"]
[EventDate "2023.07.01"]
[EventType "swiss"]
[EventRounds "9"]
[EventCountry "CZE"]
[TimeControl "120+30"]

1. e4 {[%emt 0:00:00]} c5 {[%emt 0:00:42]} 2. c4 {[%emt 0:02:24]} Nc6 {[%emt 0:00:44]} 3. Nc3 {[%emt 0:00:09]} g6 {[%emt 0:04:03]} 4. g3 {[%emt 0:00:42]} Bg7 {[%emt 0:00:07]} 5. Bg2 {[%emt 0:00:06]} d6 {[%emt 0:02:25]} 6. d3 {[%emt 0:00:53]} a6 {[%emt 0:08:19]} 7. Nge2 {[%emt 0:03:26]} Rb8 {[%emt 0:00:36]} 8. a4 {[%emt 0:00:27]} e6 {[%emt 0:06:01]} 9. O-O {[%emt 0:02:44]} Nge7 {[%emt 0:02:11]} 10. Bg5 {[%emt 0:13:37]} h6 {[%emt 0:10:16]} 11. Be3 {[%emt 0:04:03]} Nd4 {[%emt 0:01:23]} 12. Rb1 {[%emt 0:16:48]} Nec6 {[%emt 0:10:07]} 13. b3 {[%emt 0:06:31]} O-O {[%emt 0:01:45]} 14. Qd2 {[%emt 0:00:58]} Kh7 {[%emt 0:00:38]} 15. f4 {[%emt 0:03:23]} f5 {[%emt 0:18:40]} 16. Bf2 {[%emt 0:06:46]} Qa5 {[%emt 0:04:41]} 17. Rfd1 {[%emt 0:06:19]} Bd7 {[%emt 0:12:59]} 18. Nxd4 {[%emt 0:05:10]} Nxd4 {[%emt 0:01:30]} 19. Ne2 {[%emt 0:01:33]} Nxe2+ {[%emt 0:10:09]} 20. Qxe2 {[%emt 0:01:08]} b5 {[%emt 0:11:08]} 21. axb5 {[%emt 0:03:14]} axb5 {[%emt 0:00:03]} 22. e5 {[%emt 0:01:13]} Qc7 {[%emt 0:09:31]} 23. d4 {[%emt 0:04:10]} dxe5 {[%emt 0:04:41]} 24. dxe5 {[%emt 0:04:14]} Rfc8 {[%emt 0:00:07]} 25. Ra1 {[%emt 0:07:51]} Bf8 {[%emt 0:02:09]} 26. Qa2 {[%emt 0:03:40]} Bc6 {[%emt 0:03:39]} 27. Bxc6 {[%emt 0:07:54]} Qxc6 {[%emt 0:00:03]} 28. Qa6 {[%emt 0:00:03]} bxc4 {[%emt 0:03:41]} 29. bxc4 {[%emt 0:01:52]} Kg8 {[%emt 0:00:55]} 30. Qxc6 {[%emt 0:05:59]} Rxc6 {[%emt 0:00:01]} 31. Ra5 {[%emt 0:00:00]} Rc7 {[%emt 0:00:55]} 32. Rb5 {[%emt 0:02:00]} Ra8 {[%emt 0:00:58]} 33. Kf1 {[%emt 0:06:41]} Be7 {[%emt 0:00:05]} 34. Rdb1 {[%emt 0:00:52]} Ra4 {[%emt 0:01:05]} 35. Rb7 {[%emt 0:01:17]} Rxb7 {[%emt 0:00:06]} 36. Rxb7 {[%emt 0:00:03]} Kf8 {[%emt 0:00:06]} 37. Ke2 {[%emt 0:00:05]} Rxc4 {[%emt 0:00:15]} 38. Kd3 {[%emt 0:00:07]} Ra4 {[%emt 0:00:31]} 39. Rc7 {[%emt 0:00:22]} Ra2 {[%emt 0:00:48]} 40. Bxc5 {[%emt 0:00:43]} Bxc5 {[%emt 0:00:02]} 41. Rxc5 {[%emt 0:00:07]} Rxh2 {[%emt 0:00:02]} 42. Rc8+ {[%emt 0:00:14]} Ke7 {[%emt 0:00:36]} 43. Rc7+ {[%emt 0:00:05]} Ke8 {[%emt 0:01:55]} 44. Rg7 {[%emt 0:00:40]} g5 {[%emt 0:01:08]} 45. fxg5 {[%emt 0:00:25]} hxg5 {[%emt 0:00:08]} 46. Rxg5 {[%emt 0:00:09]} Kf7 {[%emt 0:00:08]} 47. Ke3 {[%emt 0:00:26]} Ra2 {[%emt 0:01:14]} 48. g4 {[%emt 0:00:12]} Ra3+ {[%emt 0:00:23]} 49. Kf4 {[%emt 0:01:07]} Ra4+ {[%emt 0:00:05]} 50. Kf3 {[%emt 0:00:06]} Rxg4 {[%emt 0:00:47]} 51. Rxg4 {[%emt 0:00:06]} fxg4+ {[%emt 0:00:00]} 52. Kxg4 {[%emt 0:00:11]} Kg6 {[%emt 0:00:04]} 53. Kf4 {[%emt 0:00:12]} Kh5 {[%emt 0:01:05]} 54. Kf3 {[%emt 0:00:09]} Kg5 {[%emt 0:00:17]} 55. Kg3 {[%emt 0:00:04]} Kf5 {[%emt 0:00:03]} 56. Kf3 {[%emt 0:00:05]} Kxe5 {[%emt 0:00:02]} 57. Ke3 {[%emt 0:00:05]} Kd5 {[%emt 0:00:13]} 58. Kd3 {[%emt 0:00:05]} e5 {[%emt 0:00:56]} 59. Ke3 {[%emt 0:00:05]} e4 {[%emt 0:00:07]} 60. Ke2 {[%emt 0:00:04]} Kd4 {[%emt 0:00:02]} 61. Kd2 {[%emt 0:00:17]} Ke5 {[%emt 0:00:26]} 62. Ke3 {[%emt 0:00:18]} Kf5 {[%emt 0:00:04]} 63. Ke2 {[%emt 0:00:11]} Kf4 {[%emt 0:00:02]} 64. Kf2 {[%emt 0:00:31]} e3+ {[%emt 0:00:05]} 65. Ke2 {[%emt 0:00:08]} Ke4 {[%emt 0:00:03]} 66. Ke1 {[%emt 0:00:15]} Kd3 {[%emt 0:00:06]} 67. Kd1 {[%emt 0:00:05]} e2+ {[%emt 0:00:03]} 68. Ke1 {[%emt 0:00:03]} Kc2 {[%emt 0:00:04]} 69. Kxe2 {[%emt 0:00:11]} 1/2-1/2

[Event "29. Klatovy A 2023"]
[Site "Klatovy"]
[Date "2023.07.09"]
[Round "9.7"]
[White "Janous, Marek"]
[Black "Jordanov, Mihail"]
[Result "1-0"]
[ECO "C56"]
[WhiteElo "2185"]
[BlackElo "2140"]
[PlyCount "95"]
[EventDate "2023.07.01"]
[EventType "swiss"]
[EventRounds "9"]
[EventCountry "CZE"]
[TimeControl "120+30"]

1. e4 {[%emt 0:00:02]} e5 {[%emt 0:00:13]} 2. Nf3 {[%emt 0:00:07]} Nc6 {[%emt 0:00:06]} 3. d4 {[%emt 0:00:04]} exd4 {[%emt 0:00:09]} 4. Bc4 {[%emt 0:00:07]} Nf6 {[%emt 0:00:26]} 5. O-O {[%emt 0:00:07]} Nxe4 {[%emt 0:00:30]} 6. Re1 {[%emt 0:00:10]} d5 {[%emt 0:00:06]} 7. Bxd5 {[%emt 0:00:07]} Qxd5 {[%emt 0:00:04]} 8. Nc3 {[%emt 0:00:06]} Qa5 {[%emt 0:00:26]} 9. Nxe4 {[%emt 0:00:07]} Be6 {[%emt 0:00:25]} 10. Neg5 {[%emt 0:00:06]} O-O-O {[%emt 0:00:32]} 11. Nxe6 {[%emt 0:00:06]} fxe6 {[%emt 0:00:04]} 12. Rxe6 {[%emt 0:00:07]} Bd6 {[%emt 0:00:29]} 13. Bg5 {[%emt 0:00:06]} Rde8 {[%emt 0:00:41]} 14. Qe1 {[%emt 0:00:06]} Qxe1+ {[%emt 0:01:09]} 15. Raxe1 {[%emt 0:00:06]} Kd7 {[%emt 0:00:20]} 16. Rxe8 {[%emt 0:00:06]} Rxe8 {[%emt 0:00:05]} 17. Rxe8 {[%emt 0:00:05]} Kxe8 {[%emt 0:00:05]} 18. Kf1 {[%emt 0:00:12]} Kf7 {[%emt 0:07:25]} 19. Bd2 {[%emt 0:00:25]} h6 {[%emt 0:05:48]} 20. Ke2 {[%emt 0:00:29]} Ke6 {[%emt 0:02:46]} 21. Kd3 {[%emt 0:00:07]} Kd5 {[%emt 0:01:32]} 22. Nxd4 {[%emt 0:00:06]} Nxd4 {[%emt 0:08:55]} 23. c4+ {[%emt 0:00:19]} Ke5 {[%emt 0:00:10]} 24. f4+ {[%emt 0:00:04]} Kf5 {[%emt 0:00:04]} 25. Kxd4 {[%emt 0:00:02]} Bxf4 {[%emt 0:00:18]} 26. Bxf4 {[%emt 0:00:03]} Kxf4 {[%emt 0:00:06]} 27. Kd5 {[%emt 0:00:02]} Ke3 {[%emt 0:07:22]} 28. Ke6 {[%emt 0:00:06]} Kf2 {[%emt 0:17:36]} 29. g4 {[%emt 0:00:07]} Kf3 {[%emt 0:11:14]} 30. Kd7 {[%emt 0:00:24]} c6 {[%emt 0:08:51]} 31. Kc7 {[%emt 0:07:22]} Kxg4 {[%emt 0:01:10]} 32. Kxb7 {[%emt 0:00:05]} Kh3 {[%emt 0:00:55]} 33. b4 {[%emt 0:00:01]} Kxh2 {[%emt 0:05:13]} 34. b5 {[%emt 0:00:02]} cxb5 {[%emt 0:00:16]} 35. c5 {[%emt 0:00:02]} g5 {[%emt 0:00:06]} 36. c6 {[%emt 0:00:07]} g4 {[%emt 0:00:02]} 37. c7 {[%emt 0:00:14]} g3 {[%emt 0:00:03]} 38. c8=Q {[%emt 0:00:14]} g2 {[%emt 0:00:04]} 39. Qh8 {[%emt 0:04:13]} Kg3 {[%emt 0:04:39]} 40. Qxh6 {[%emt 0:00:15]} g1=Q {[%emt 0:04:08]} 41. Qg5+ {[%emt 0:00:13]} Kh2 {[%emt 0:00:06]} 42. Qxg1+ {[%emt 0:00:07]} Kxg1 {[%emt 0:00:02]} 43. Kxa7 {[%emt 0:00:06]} Kf2 {[%emt 0:00:16]} 44. Kb6 {[%emt 0:00:04]} b4 {[%emt 0:00:06]} 45. Kb5 {[%emt 0:00:03]} Ke3 {[%emt 0:00:09]} 46. Kxb4 {[%emt 0:00:02]} Kd4 {[%emt 0:00:24]} 47. a4 {[%emt 0:00:13]} Kd5 {[%emt 0:00:30]} 48. Kb5 {[%emt 0:00:04]} 1-0

[Event "29. Klatovy A 2023"]
[Site "Klatovy"]
[Date "2023.07.09"]
[Round "9.8"]
[White "Skypala, Ondrej"]
[Black "Novotny, David"]
[Result "1/2-1/2"]
[ECO "A21"]
[WhiteElo "2163"]
[BlackElo "2034"]
[PlyCount "42"]
[EventDate "2023.07.01"]
[EventType "swiss"]
[EventRounds "9"]
[EventCountry "CZE"]
[TimeControl "120+30"]

1. c4 {[%emt 0:02:45]} f5 {[%emt 0:00:42]} 2. Nc3 {[%emt 0:00:06]} Nf6 {[%emt 0:00:08]} 3. g3 {[%emt 0:00:05]} d6 {[%emt 0:00:10]} 4. Bg2 {[%emt 0:00:06]} e5 {[%emt 0:00:12]} 5. d4 {[%emt 0:01:53]} Be7 {[%emt 0:06:08]} 6. dxe5 {[%emt 0:01:19]} dxe5 {[%emt 0:00:08]} 7. Qxd8+ {[%emt 0:00:29]} Bxd8 {[%emt 0:01:53]} 8. e4 {[%emt 0:00:05]} Nc6 {[%emt 0:15:37]} 9. Nge2 {[%emt 0:03:06]} Nb4 {[%emt 0:01:13]} 10. O-O {[%emt 0:00:13]} Nd3 {[%emt 0:00:22]} 11. exf5 {[%emt 0:00:37]} c6 {[%emt 0:04:17]} 12. Ne4 {[%emt 0:00:07]} O-O {[%emt 0:22:25]} 13. Nd6 {[%emt 0:00:06]} Ng4 {[%emt 0:12:24]} 14. h3 {[%emt 0:01:47]} Ngxf2 {[%emt 0:01:10]} 15. Be3 {[%emt 0:00:07]} Bxf5 {[%emt 0:02:47]} 16. c5 {[%emt 0:04:14]} Nxh3+ {[%emt 0:10:30]} 17. Kh2 {[%emt 0:04:59]} Nhf2 {[%emt 0:00:12]} 18. Nxf5 {[%emt 0:11:37]} Rxf5 {[%emt 0:04:28]} 19. Kg1 {[%emt 0:01:25]} Be7 {[%emt 0:06:33]} 20. Rxf2 {[%emt 0:00:27]} Nxf2 {[%emt 0:01:20]} 21. Bxf2 {[%emt 0:02:06]} Bg5 {[%emt 0:08:58]} 1/2-1/2

[Event "29. Klatovy A 2023"]
[Site "Klatovy"]
[Date "2023.07.09"]
[Round "9.9"]
[White "Folk, Petr"]
[Black "Filindash, Nikita"]
[Result "1/2-1/2"]
[ECO "B92"]
[WhiteElo "2135"]
[BlackElo "2011"]
[PlyCount "91"]
[EventDate "2023.07.01"]
[EventType "swiss"]
[EventRounds "9"]
[EventCountry "CZE"]
[TimeControl "120+30"]

1. e4 {[%emt 0:06:27]} c5 {[%emt 0:00:41]} 2. Nf3 {[%emt 0:00:05]} d6 {[%emt 0:00:06]} 3. d4 {[%emt 0:00:08]} cxd4 {[%emt 0:00:02]} 4. Nxd4 {[%emt 0:00:05]} Nf6 {[%emt 0:00:10]} 5. Nc3 {[%emt 0:00:04]} a6 {[%emt 0:00:05]} 6. Be2 {[%emt 0:00:04]} e5 {[%emt 0:00:06]} 7. Nb3 {[%emt 0:00:04]} Be7 {[%emt 0:00:04]} 8. O-O {[%emt 0:00:08]} O-O {[%emt 0:00:22]} 9. Kh1 {[%emt 0:00:09]} b5 {[%emt 0:01:51]} 10. a4 {[%emt 0:00:39]} b4 {[%emt 0:00:43]} 11. Nd5 {[%emt 0:01:34]} a5 {[%emt 0:09:29]} 12. Be3 {[%emt 0:03:59]} Nbd7 {[%emt 0:00:54]} 13. f3 {[%emt 0:03:57]} Bb7 {[%emt 0:02:22]} 14. c4 {[%emt 0:06:57]} bxc3 {[%emt 0:35:49]} 15. bxc3 {[%emt 0:01:18]} Nxd5 {[%emt 0:12:43]} 16. exd5 {[%emt 0:00:33]} Qc7 {[%emt 0:07:10]} 17. c4 {[%emt 0:03:27]} Ba6 {[%emt 0:14:28]} 18. Qd2 {[%emt 0:04:01]} Bb7 {[%emt 0:03:18]} 19. Rab1 {[%emt 0:04:09]} Rfb8 {[%emt 0:01:53]} 20. Rfd1 {[%emt 0:05:43]} Bd8 {[%emt 0:05:21]} 21. c5 {[%emt 0:08:58]} Nxc5 {[%emt 0:03:38]} 22. Nxc5 {[%emt 0:00:07]} dxc5 {[%emt 0:00:08]} 23. d6 {[%emt 0:02:28]} Qd7 {[%emt 0:00:15]} 24. Bb5 {[%emt 0:14:36]} Bc6 {[%emt 0:00:01]} 25. Qd3 {[%emt 0:03:53]} Bxb5 {[%emt 0:02:24]} 26. axb5 {[%emt 0:01:05]} Bb6 {[%emt 0:00:32]} 27. Qc4 {[%emt 0:00:41]} Rc8 {[%emt 0:04:01]} 28. Qe4 {[%emt 0:05:56]} a4 {[%emt 0:00:52]} 29. Ra1 {[%emt 0:06:22]} Qxb5 {[%emt 0:02:46]} 30. Rab1 {[%emt 0:07:07]} Qa5 {[%emt 0:05:31]} 31. d7 {[%emt 0:00:37]} Rd8 {[%emt 0:00:30]} 32. Qc6 {[%emt 0:02:14]} Rab8 {[%emt 0:03:46]} 33. Rb5 {[%emt 0:09:03]} Qa7 {[%emt 0:00:14]} 34. Bxc5 {[%emt 0:01:29]} Bxc5 {[%emt 0:00:09]} 35. Rxb8 {[%emt 0:00:51]} Qxb8 {[%emt 0:00:14]} 36. Qxc5 {[%emt 0:00:13]} a3 {[%emt 0:02:53]} 37. h3 {[%emt 0:04:17]} Qa8 {[%emt 0:04:21]} 38. Qxe5 {[%emt 0:01:33]} a2 {[%emt 0:00:15]} 39. Re1 {[%emt 0:07:54]} h6 {[%emt 0:02:19]} 40. Qe8+ {[%emt 0:03:28]} Kh7 {[%emt 0:00:12]} 41. Qe5 {[%emt 0:01:12]} Rxd7 {[%emt 0:01:17]} 42. Qf5+ {[%emt 0:00:31]} Kg8 {[%emt 0:00:01]} 43. Qxd7 {[%emt 0:00:14]} a1=Q {[%emt 0:00:06]} 44. Rxa1 {[%emt 0:00:45]} Qxa1+ {[%emt 0:00:02]} 45. Kh2 {[%emt 0:00:07]} Qe5+ {[%emt 0:00:10]} 46. Kg1 {[%emt 0:00:13]} 1/2-1/2

[Event "29. Klatovy A 2023"]
[Site "Klatovy"]
[Date "2023.07.09"]
[Round "9.10"]
[White "Ret, Adam Josef"]
[Black "Flajsman, Petr"]
[Result "1/2-1/2"]
[ECO "A40"]
[WhiteElo "2133"]
[BlackElo "1956"]
[PlyCount "85"]
[EventDate "2023.07.01"]
[EventType "swiss"]
[EventRounds "9"]
[EventCountry "CZE"]
[TimeControl "120+30"]

1. Nf3 {[%emt 0:00:28]} b5 {[%emt 0:02:05]} 2. e3 {[%emt 0:10:23]} a6 {[%emt 0:00:15]} 3. d4 {[%emt 0:00:59]} Bb7 {[%emt 0:00:10]} 4. Be2 {[%emt 0:01:33]} Nf6 {[%emt 0:00:33]} 5. O-O {[%emt 0:00:10]} e6 {[%emt 0:00:05]} 6. b3 {[%emt 0:00:47]} Be7 {[%emt 0:00:20]} 7. c4 {[%emt 0:00:45]} bxc4 {[%emt 0:05:47]} 8. bxc4 {[%emt 0:00:33]} c5 {[%emt 0:00:07]} 9. Nc3 {[%emt 0:08:22]} cxd4 {[%emt 0:04:15]} 10. exd4 {[%emt 0:00:50]} Qc7 {[%emt 0:01:09]} 11. Rb1 {[%emt 0:08:49]} Ne4 {[%emt 0:03:38]} 12. Nxe4 {[%emt 0:08:06]} Bxe4 {[%emt 0:00:06]} 13. Bd3 {[%emt 0:00:11]} Bc6 {[%emt 0:08:37]} 14. Ne5 {[%emt 0:04:40]} d6 {[%emt 0:16:57]} 15. Nxc6 {[%emt 0:02:10]} Nxc6 {[%emt 0:00:12]} 16. Be4 {[%emt 0:18:35]} O-O {[%emt 0:05:17]} 17. d5 {[%emt 0:11:27]} exd5 {[%emt 0:05:38]} 18. cxd5 {[%emt 0:00:40]} Ne5 {[%emt 0:00:20]} 19. Be3 {[%emt 0:00:57]} Qc4 {[%emt 0:03:14]} 20. Qc2 {[%emt 0:04:36]} Qxc2 {[%emt 0:03:12]} 21. Bxc2 {[%emt 0:00:11]} Rfb8 {[%emt 0:06:28]} 22. Rxb8+ {[%emt 0:01:49]} Rxb8 {[%emt 0:00:01]} 23. Rb1 {[%emt 0:00:10]} Rxb1+ {[%emt 0:03:42]} 24. Bxb1 {[%emt 0:00:01]} g5 {[%emt 0:00:41]} 25. Bb6 {[%emt 0:06:19]} Nd7 {[%emt 0:01:59]} 26. Bc7 {[%emt 0:01:33]} Nf6 {[%emt 0:02:26]} 27. Bd3 {[%emt 0:05:21]} Nxd5 {[%emt 0:00:16]} 28. Ba5 {[%emt 0:00:00]} Kg7 {[%emt 0:04:48]} 29. Bc4 {[%emt 0:01:35]} Nf4 {[%emt 0:00:22]} 30. Bxa6 {[%emt 0:00:10]} Kf6 {[%emt 0:01:04]} 31. a4 {[%emt 0:04:42]} Ke6 {[%emt 0:02:02]} 32. Bb5 {[%emt 0:00:57]} Nd5 {[%emt 0:05:24]} 33. Bc6 {[%emt 0:04:34]} Bf6 {[%emt 0:01:24]} 34. Bd2 {[%emt 0:01:30]} h6 {[%emt 0:01:49]} 35. a5 {[%emt 0:02:32]} Bd4 {[%emt 0:00:32]} 36. a6 {[%emt 0:01:08]} Nc7 {[%emt 0:00:32]} 37. Bb7 {[%emt 0:01:45]} Ba7 {[%emt 0:02:19]} 38. Be3 {[%emt 0:03:04]} Nb5 {[%emt 0:00:56]} 39. Bxa7 {[%emt 0:01:04]} Nxa7 {[%emt 0:00:02]} 40. Kf1 {[%emt 0:00:07]} Ke5 {[%emt 0:02:12]} 41. Ke2 {[%emt 0:00:13]} Kd4 {[%emt 0:00:04]} 42. Kd2 {[%emt 0:01:11]} d5 {[%emt 0:00:28]} 43. h3 {[%emt 0:01:04]} 1/2-1/2

[Event "29. Klatovy A 2023"]
[Site "Klatovy"]
[Date "2023.07.09"]
[Round "9.11"]
[White "Mametev, Artem"]
[Black "Pecka, Jan"]
[Result "1-0"]
[ECO "B33"]
[WhiteElo "1991"]
[BlackElo "2054"]
[PlyCount "57"]
[EventDate "2023.07.01"]
[EventType "swiss"]
[EventRounds "9"]
[EventCountry "CZE"]
[TimeControl "120+30"]

1. e4 {[%emt 0:00:05]} c5 {[%emt 0:06:37]} 2. Nf3 {[%emt 0:00:06]} Nc6 {[%emt 0:00:03]} 3. d4 {[%emt 0:00:05]} cxd4 {[%emt 0:00:07]} 4. Nxd4 {[%emt 0:00:04]} Nf6 {[%emt 0:00:05]} 5. Nc3 {[%emt 0:00:03]} e5 {[%emt 0:00:06]} 6. Ndb5 {[%emt 0:00:06]} d6 {[%emt 0:00:04]} 7. Bg5 {[%emt 0:00:07]} a6 {[%emt 0:00:31]} 8. Na3 {[%emt 0:00:11]} b5 {[%emt 0:00:05]} 9. Nd5 {[%emt 0:00:07]} Be7 {[%emt 0:00:05]} 10. Bxf6 {[%emt 0:00:16]} Bxf6 {[%emt 0:00:07]} 11. c4 {[%emt 0:00:12]} b4 {[%emt 0:00:15]} 12. Nc2 {[%emt 0:00:06]} a5 {[%emt 0:00:16]} 13. Qf3 {[%emt 0:00:14]} Bg5 {[%emt 0:02:53]} 14. h4 {[%emt 0:00:06]} Bh6 {[%emt 0:00:33]} 15. g4 {[%emt 0:00:09]} Bf4 {[%emt 0:00:06]} 16. Nxf4 {[%emt 0:00:21]} exf4 {[%emt 0:00:06]} 17. Qxf4 {[%emt 0:07:30]} O-O {[%emt 0:01:23]} 18. Be2 {[%emt 0:03:30]} Be6 {[%emt 0:04:53]} 19. Rd1 {[%emt 0:03:46]} Ne5 {[%emt 0:05:16]} 20. Ne3 {[%emt 0:12:29]} b3 {[%emt 0:03:01]} 21. axb3 {[%emt 0:13:20]} Rb8 {[%emt 0:01:02]} 22. c5 {[%emt 0:03:55]} Bxb3 {[%emt 0:00:26]} 23. Rxd6 {[%emt 0:00:29]} Qe8 {[%emt 0:02:02]} 24. h5 {[%emt 0:05:08]} h6 {[%emt 0:09:12]} 25. g5 {[%emt 0:04:21]} hxg5 {[%emt 0:00:05]} 26. Qxg5 {[%emt 0:00:08]} f6 {[%emt 0:00:03]} 27. Qg3 {[%emt 0:00:57]} Kh8 {[%emt 0:01:15]} 28. Nf5 {[%emt 0:01:03]} Rg8 {[%emt 0:00:31]} 29. Qg6 {[%emt 0:06:30]} 1-0

[Event "29. Klatovy A 2023"]
[Site "Klatovy"]
[Date "2023.07.09"]
[Round "9.12"]
[White "Hladky, Tadeas"]
[Black "Honcharov, Makar"]
[Result "1-0"]
[ECO "B51"]
[WhiteElo "2046"]
[BlackElo "1696"]
[PlyCount "75"]
[EventDate "2023.07.01"]
[EventType "swiss"]
[EventRounds "9"]
[EventCountry "CZE"]
[TimeControl "120+30"]

1. e4 {[%emt 0:00:02]} c5 {[%emt 0:00:04]} 2. Nf3 {[%emt 0:00:08]} d6 {[%emt 0:00:06]} 3. Bb5+ {[%emt 0:00:06]} Nd7 {[%emt 0:00:06]} 4. d4 {[%emt 0:00:07]} cxd4 {[%emt 0:00:02]} 5. Qxd4 {[%emt 0:00:08]} a6 {[%emt 0:00:04]} 6. Bxd7+ {[%emt 0:00:12]} Bxd7 {[%emt 0:00:04]} 7. O-O {[%emt 0:00:15]} e5 {[%emt 0:00:59]} 8. Qd3 {[%emt 0:00:06]} h6 {[%emt 0:00:08]} 9. c4 {[%emt 0:00:04]} Nf6 {[%emt 0:00:09]} 10. Nc3 {[%emt 0:00:06]} Be7 {[%emt 0:02:12]} 11. b3 {[%emt 0:02:40]} Qb8 {[%emt 0:00:14]} 12. a4 {[%emt 0:01:54]} O-O {[%emt 0:02:55]} 13. Ba3 {[%emt 0:05:59]} b5 {[%emt 0:09:23]} 14. Nxe5 {[%emt 0:04:22]} b4 {[%emt 0:04:23]} 15. Nxd7 {[%emt 0:00:31]} Nxd7 {[%emt 0:02:29]} 16. Nd5 {[%emt 0:01:26]} Ne5 {[%emt 0:06:20]} 17. Nxe7+ {[%emt 0:03:02]} Kh7 {[%emt 0:03:47]} 18. Qc2 {[%emt 0:03:47]} bxa3 {[%emt 0:00:35]} 19. Nd5 {[%emt 0:03:11]} Qa7 {[%emt 0:03:14]} 20. Rxa3 {[%emt 0:01:11]} Qc5 {[%emt 0:05:34]} 21. Raa1 {[%emt 0:04:14]} a5 {[%emt 0:12:32]} 22. Rad1 {[%emt 0:03:52]} Rab8 {[%emt 0:05:24]} 23. Nc3 {[%emt 0:01:37]} Rb7 {[%emt 0:06:57]} 24. Rd5 {[%emt 0:02:21]} Qb4 {[%emt 0:00:51]} 25. Nb5 {[%emt 0:02:15]} Ng6 {[%emt 0:03:09]} 26. Rfd1 {[%emt 0:04:51]} Rb6 {[%emt 0:11:34]} 27. g3 {[%emt 0:12:34]} Ne5 {[%emt 0:00:56]} 28. Kg2 {[%emt 0:00:21]} g6 {[%emt 0:03:38]} 29. Rxd6 {[%emt 0:05:01]} Rxd6 {[%emt 0:00:29]} 30. Rxd6 {[%emt 0:00:06]} f5 {[%emt 0:00:48]} 31. Qc3 {[%emt 0:04:32]} Qxc3 {[%emt 0:04:29]} 32. Nxc3 {[%emt 0:00:07]} fxe4 {[%emt 0:00:05]} 33. Nxe4 {[%emt 0:00:15]} Rb8 {[%emt 0:00:15]} 34. Rd5 {[%emt 0:00:17]} Nc6 {[%emt 0:00:11]} 35. Rd7+ {[%emt 0:00:53]} Kg8 {[%emt 0:00:08]} 36. Nf6+ {[%emt 0:00:14]} Kf8 {[%emt 0:00:05]} 37. Rc7 {[%emt 0:00:06]} Ne5 {[%emt 0:00:35]} 38. f4 {[%emt 0:01:31]} 1-0

[Event "29. Klatovy A 2023"]
[Site "Klatovy"]
[Date "2023.07.09"]
[Round "9.13"]
[White "Kishore, Kumar Jaganathan"]
[Black "Kopta, Pavel"]
[Result "1/2-1/2"]
[ECO "A30"]
[WhiteElo "1860"]
[BlackElo "2209"]
[PlyCount "20"]
[EventDate "2023.07.01"]
[EventType "swiss"]
[EventRounds "9"]
[EventCountry "CZE"]
[TimeControl "120+30"]

1. Nf3 {[%emt 12:08:51]} Nf6 {[%emt 0:01:54]} 2. c4 {[%emt 0:00:14]} e6 {[%emt 0:00:32]} 3. g3 {[%emt 0:00:12]} c5 {[%emt 0:00:56]} 4. Bg2 {[%emt 0:00:06]} Qc7 {[%emt 0:02:26]} 5. O-O {[%emt 0:01:46]} Be7 {[%emt 0:00:28]} 6. b3 {[%emt 0:04:42]} O-O {[%emt 0:01:01]} 7. Bb2 {[%emt 0:00:06]} d6 {[%emt 0:00:29]} 8. d4 {[%emt 0:02:51]} cxd4 {[%emt 0:00:40]} 9. Nxd4 {[%emt 0:00:10]} a6 {[%emt 0:00:59]} 10. Nc3 {[%emt 0:00:38]} Nc6 {[%emt 0:07:39]} 1/2-1/2

[Event "29. Klatovy A 2023"]
[Site "Klatovy"]
[Date "2023.07.09"]
[Round "9.14"]
[White "Holy, Filip"]
[Black "Polak, Michal 2002"]
[Result "1/2-1/2"]
[ECO "C47"]
[WhiteElo "2129"]
[BlackElo "1959"]
[PlyCount "51"]
[EventDate "2023.07.01"]
[EventType "swiss"]
[EventRounds "9"]
[EventCountry "CZE"]
[TimeControl "120+30"]

1. e4 {[%emt 0:20:22]} e5 {[%emt 0:00:13]} 2. Nf3 {[%emt 0:00:04]} Nc6 {[%emt 0:00:12]} 3. Nc3 {[%emt 0:00:07]} Nf6 {[%emt 0:00:05]} 4. d4 {[%emt 0:00:03]} exd4 {[%emt 0:00:09]} 5. Nxd4 {[%emt 0:00:02]} Bb4 {[%emt 0:00:13]} 6. Nxc6 {[%emt 0:00:04]} bxc6 {[%emt 0:00:09]} 7. Bd3 {[%emt 0:00:02]} d5 {[%emt 0:00:24]} 8. exd5 {[%emt 0:00:03]} cxd5 {[%emt 0:00:15]} 9. O-O {[%emt 0:00:05]} O-O {[%emt 0:00:16]} 10. h3 {[%emt 0:00:05]} Re8 {[%emt 0:10:57]} 11. Bf4 {[%emt 0:01:08]} Bd6 {[%emt 0:02:30]} 12. Qf3 {[%emt 0:01:28]} c6 {[%emt 0:03:44]} 13. Rfe1 {[%emt 0:02:02]} Be6 {[%emt 0:04:22]} 14. Ne2 {[%emt 0:01:42]} Qc7 {[%emt 0:06:35]} 15. c3 {[%emt 0:04:52]} Rab8 {[%emt 0:05:27]} 16. b4 {[%emt 0:05:06]} Nd7 {[%emt 0:09:28]} 17. Bxd6 {[%emt 0:09:34]} Qxd6 {[%emt 0:00:05]} 18. Nf4 {[%emt 0:00:56]} d4 {[%emt 0:12:05]} 19. cxd4 {[%emt 0:19:23]} Rxb4 {[%emt 0:09:07]} 20. Rxe6 {[%emt 0:07:14]} Rxe6 {[%emt 0:08:58]} 21. Nxe6 {[%emt 0:00:06]} Qxe6 {[%emt 0:02:20]} 22. Bf5 {[%emt 0:06:57]} Qd6 {[%emt 0:02:20]} 23. Bxd7 {[%emt 0:00:28]} Qxd7 {[%emt 0:00:06]} 24. Rc1 {[%emt 0:00:22]} Rxd4 {[%emt 0:02:21]} 25. Qxc6 {[%emt 0:00:25]} g6 {[%emt 0:07:36]} 26. Qxd7 {[%emt 0:02:44]} 1/2-1/2